[Event "*** SCC Grand Prix: Titled Tuesday Blitz"]
[Site "Chess.com"]
[Date "2020.07.21"]
[Round "9"]
[White "GustavoJuarezF"]
[Black "DonPreuss"]
[Result "0-1"]
[WhiteElo "2020"]
[BlackElo "2170"]
[TimeControl "180+1"]
[EndTime "11:49:09 PDT"]
[Termination "DonPreuss won on time"]

1. e4 {[%clk 0:02:59.7]} 1... e5 {[%clk 0:02:59.7]} 2. Nf3 {[%clk 0:02:58.5]}
2... d5 {[%clk 0:03:00.2]} 3. d4 {[%clk 0:02:49.2]} 3... dxe4 {[%clk 0:02:59.8]}
4. Nxe5 {[%clk 0:02:48]} 4... Bd6 {[%clk 0:02:59.9]} 5. Nc3 {[%clk 0:02:38.9]}
5... Bxe5 {[%clk 0:02:59.7]} 6. dxe5 {[%clk 0:02:38.4]} 6... Qxd1+ {[%clk
0:03:00.6]} 7. Nxd1 {[%clk 0:02:37.4]} 7... Nc6 {[%clk 0:03:00.5]} 8. Bf4 {[%clk
0:02:36.2]} 8... Nge7 {[%clk 0:02:59.8]} 9. Bb5 {[%clk 0:02:33.4]} 9... Bd7
{[%clk 0:02:58.9]} 10. Bxc6 {[%clk 0:02:30.2]} 10... Bxc6 {[%clk 0:02:57.6]} 11.
Ne3 {[%clk 0:02:28.2]} 11... O-O-O {[%clk 0:02:57.2]} 12. O-O {[%clk 0:02:24.7]}
12... Ng6 {[%clk 0:02:43.1]} 13. Bg3 {[%clk 0:02:23.7]} 13... Rd2 {[%clk
0:02:26.5]} 14. Rad1 {[%clk 0:02:18.8]} 14... Rhd8 {[%clk 0:02:23.8]} 15. Rxd2
{[%clk 0:02:18.6]} 15... Rxd2 {[%clk 0:02:23.8]} 16. Rd1 {[%clk 0:02:19.2]}
16... Rxd1+ {[%clk 0:02:23.1]} 17. Nxd1 {[%clk 0:02:19.1]} 17... Kd7 {[%clk
0:02:23]} 18. h4 {[%clk 0:02:12.7]} 18... Ke6 {[%clk 0:02:22.7]} 19. Kf1 {[%clk
0:01:53.9]} 19... Nxe5 {[%clk 0:02:22.6]} 20. Ke2 {[%clk 0:01:51.7]} 20... h5
{[%clk 0:01:46.3]} 21. b3 {[%clk 0:01:48.4]} 21... f5 {[%clk 0:01:43.7]} 22. Ke3
{[%clk 0:01:43.8]} 22... Bd7 {[%clk 0:01:21.9]} 23. Kf4 {[%clk 0:01:42.8]} 23...
Nf7 {[%clk 0:01:19.1]} 24. Ne3 {[%clk 0:01:39.6]} 24... g6 {[%clk 0:01:17.7]}
25. c4 {[%clk 0:01:34.9]} 25... c6 {[%clk 0:01:12.8]} 26. Nc2 {[%clk 0:01:31.7]}
26... Kf6 {[%clk 0:01:08.2]} 27. Ke3 {[%clk 0:01:29.4]} 27... Ne5 {[%clk
0:01:01.5]} 28. Bf4 {[%clk 0:01:13.9]} 28... Nf7 {[%clk 0:00:58.1]} 29. Kd4
{[%clk 0:01:03.4]} 29... b6 {[%clk 0:00:56.4]} 30. b4 {[%clk 0:01:00.2]} 30...
Ke6 {[%clk 0:00:54.9]} 31. c5 {[%clk 0:00:51.7]} 31... b5 {[%clk 0:00:52.3]} 32.
Na1 {[%clk 0:00:44.8]} 32... Nd8 {[%clk 0:00:45.3]} 33. Nb3 {[%clk 0:00:42.7]}
33... Kf7 {[%clk 0:00:43.8]} 34. a4 {[%clk 0:00:35.5]} 34... Ne6+ {[%clk
0:00:43.5]} 35. Ke3 {[%clk 0:00:28.1]} 35... Nxf4 {[%clk 0:00:42.3]} 36. Kxf4
{[%clk 0:00:26.7]} 36... bxa4 {[%clk 0:00:42.7]} 37. Na1 {[%clk 0:00:21.6]}
37... a3 {[%clk 0:00:42.3]} 38. Nc2 {[%clk 0:00:21.2]} 38... a2 {[%clk
0:00:41.9]} 39. Ke5 {[%clk 0:00:20.6]} 39... Be6 {[%clk 0:00:34.1]} 40. g3
{[%clk 0:00:19.8]} 40... Ke7 {[%clk 0:00:29.3]} 41. Na1 {[%clk 0:00:14.8]} 41...
a6 {[%clk 0:00:28.4]} 42. Nc2 {[%clk 0:00:11.6]} 42... Bb3 {[%clk 0:00:28.4]}
43. Na1 {[%clk 0:00:11.6]} 43... Ba4 {[%clk 0:00:28.8]} 44. Kf4 {[%clk
0:00:07.6]} 44... Kf6 {[%clk 0:00:29]} 45. Ke3 {[%clk 0:00:07.4]} 45... Ke5
{[%clk 0:00:28.8]} 46. Kd2 {[%clk 0:00:05.9]} 46... f4 {[%clk 0:00:28.1]} 47.
Kc3 {[%clk 0:00:04.6]} 47... fxg3 {[%clk 0:00:27.2]} 48. fxg3 {[%clk 0:00:03.6]}
48... Kf5 {[%clk 0:00:24.2]} 49. Kd4 {[%clk 0:00:01.8]} 49... Kg4 {[%clk
0:00:24.5]} 50. Kxe4 {[%clk 0:00:01.4]} 50... Kxg3 {[%clk 0:00:24.9]} 51. Ke5
{[%clk 0:00:01.3]} 51... Kxh4 {[%clk 0:00:24.7]} 52. Kd6 {[%clk 0:00:01.5]}
52... g5 {[%clk 0:00:24.8]} 53. Kc7 {[%clk 0:00:01.6]} 53... g4 {[%clk
0:00:24.4]} 54. Kb6 {[%clk 0:00:02]} 54... g3 {[%clk 0:00:23.5]} 55. Kxa6 {[%clk
0:00:02]} 55... g2 {[%clk 0:00:23.9]} 56. Ka5 {[%clk 0:00:02.4]} 56... Bb5
{[%clk 0:00:23.4]} 0-1

[Event "*** SCC Grand Prix: Titled Tuesday Blitz"]
[Site "Chess.com"]
[Date "2020.07.21"]
[Round "9"]
[White "dosto07"]
[Black "dpopadic"]
[Result "1-0"]
[WhiteElo "2240"]
[BlackElo "2351"]
[TimeControl "180+1"]
[EndTime "11:49:11 PDT"]
[Termination "dosto07 won by resignation"]

1. d4 {[%clk 0:03:00.9]} 1... Nf6 {[%clk 0:02:59.8]} 2. Nf3 {[%clk 0:02:59.2]}
2... g6 {[%clk 0:03:00]} 3. Bf4 {[%clk 0:02:56.2]} 3... Bg7 {[%clk 0:02:59.8]}
4. e3 {[%clk 0:02:53.6]} 4... d6 {[%clk 0:03:00.3]} 5. h3 {[%clk 0:02:53.5]}
5... O-O {[%clk 0:03:00.4]} 6. Be2 {[%clk 0:02:53.8]} 6... c5 {[%clk 0:03:00.9]}
7. c3 {[%clk 0:02:52.6]} 7... Nc6 {[%clk 0:03:01.1]} 8. Nbd2 {[%clk 0:02:48.1]}
8... Bf5 {[%clk 0:03:00.7]} 9. O-O {[%clk 0:02:46.4]} 9... Ne4 {[%clk
0:03:00.7]} 10. Bh2 {[%clk 0:02:36.1]} 10... Nxd2 {[%clk 0:03:00.2]} 11. Qxd2
{[%clk 0:02:34.3]} 11... a6 {[%clk 0:02:59.4]} 12. Rfe1 {[%clk 0:02:31.3]} 12...
Rc8 {[%clk 0:02:58.3]} 13. Bf1 {[%clk 0:02:28.2]} 13... b5 {[%clk 0:02:54.6]}
14. e4 {[%clk 0:02:26.3]} 14... Bd7 {[%clk 0:02:52.3]} 15. a4 {[%clk 0:02:23.8]}
15... cxd4 {[%clk 0:02:42]} 16. cxd4 {[%clk 0:02:21.9]} 16... Qb6 {[%clk
0:02:41]} 17. axb5 {[%clk 0:02:18.3]} 17... axb5 {[%clk 0:02:40.9]} 18. d5
{[%clk 0:02:13.3]} 18... Nb8 {[%clk 0:02:26.6]} 19. e5 {[%clk 0:02:08.1]} 19...
Bf5 {[%clk 0:02:16.5]} 20. Bf4 {[%clk 0:01:43.9]} 20... Rc2 {[%clk 0:02:12.3]}
21. Qd4 {[%clk 0:01:32]} 21... Qxd4 {[%clk 0:01:58.5]} 22. Nxd4 {[%clk
0:01:30.9]} 22... Rxb2 {[%clk 0:01:58.3]} 23. Nxf5 {[%clk 0:01:27.1]} 23... gxf5
{[%clk 0:01:57.3]} 24. exd6 {[%clk 0:01:25.8]} 24... exd6 {[%clk 0:01:57]} 25.
Bxd6 {[%clk 0:01:25.6]} 25... Rd8 {[%clk 0:01:56.9]} 26. Bc7 {[%clk 0:01:22.9]}
26... Rc8 {[%clk 0:01:51.4]} 27. d6 {[%clk 0:01:20.4]} 27... Bd4 {[%clk
0:01:50.8]} 28. Red1 {[%clk 0:00:50.5]} 28... Bxf2+ {[%clk 0:01:46.9]} 29. Kh1
{[%clk 0:00:50.3]} 29... Nd7 {[%clk 0:01:47.5]} 30. Bd3 {[%clk 0:00:38]} 30...
Nf8 {[%clk 0:01:08.5]} 31. Bxf5 {[%clk 0:00:37.3]} 31... Re8 {[%clk 0:01:08.2]}
32. d7 {[%clk 0:00:35.4]} 32... Nxd7 {[%clk 0:01:07.5]} 33. Bxd7 {[%clk
0:00:34.5]} 33... Ree2 {[%clk 0:01:05.9]} 34. Bc6 {[%clk 0:00:23.4]} 34... b4
{[%clk 0:00:54.3]} 35. Bf3 {[%clk 0:00:21.5]} 35... Re8 {[%clk 0:00:53.4]} 36.
Rab1 {[%clk 0:00:16.5]} 36... Rxb1 {[%clk 0:00:50]} 37. Rxb1 {[%clk 0:00:16.2]}
37... Bc5 {[%clk 0:00:49.9]} 38. Ba5 {[%clk 0:00:15.6]} 38... Rb8 {[%clk
0:00:48.8]} 39. Bd5 {[%clk 0:00:15.4]} 39... Kf8 {[%clk 0:00:42.6]} 40. Bc7
{[%clk 0:00:14.2]} 40... Rc8 {[%clk 0:00:40.3]} 41. Be5 {[%clk 0:00:12.8]} 41...
Ke7 {[%clk 0:00:38.7]} 42. Re1 {[%clk 0:00:11]} 42... Kd7 {[%clk 0:00:35.1]} 43.
Bxf7 {[%clk 0:00:10.4]} 43... Rf8 {[%clk 0:00:28.5]} 44. Bd5 {[%clk 0:00:09.5]}
44... Rf2 {[%clk 0:00:24.5]} 45. Rd1 {[%clk 0:00:08.7]} 45... Ke7 {[%clk
0:00:21.9]} 46. Bg3 {[%clk 0:00:07.7]} 46... Rf5 {[%clk 0:00:18.4]} 47. Bh4+
{[%clk 0:00:07.6]} 47... Kf8 {[%clk 0:00:16.8]} 48. Bb3 {[%clk 0:00:07.1]} 48...
Re5 {[%clk 0:00:14.8]} 49. Bg3 {[%clk 0:00:06.5]} 49... Re3 {[%clk 0:00:12.2]}
50. Rf1+ {[%clk 0:00:06.2]} 50... Ke8 {[%clk 0:00:10.9]} 51. Rf3 {[%clk
0:00:07.1]} 51... Re1+ {[%clk 0:00:09.4]} 52. Bxe1 {[%clk 0:00:06]} 1-0

[Event "*** SCC Grand Prix: Titled Tuesday Blitz"]
[Site "Chess.com"]
[Date "2020.07.21"]
[Round "9"]
[White "Joseacorrea"]
[Black "Ashedu66"]
[Result "1-0"]
[WhiteElo "2012"]
[BlackElo "2224"]
[TimeControl "180+1"]
[EndTime "11:49:12 PDT"]
[Termination "Joseacorrea won on time"]

1. c4 {[%clk 0:03:00.9]} 1... c5 {[%clk 0:02:59.5]} 2. Nc3 {[%clk 0:03:01.4]}
2... g6 {[%clk 0:02:59.4]} 3. Nf3 {[%clk 0:03:02]} 3... Bg7 {[%clk 0:02:58.9]}
4. g3 {[%clk 0:03:02.6]} 4... d6 {[%clk 0:02:55.4]} 5. Bg2 {[%clk 0:03:03.1]}
5... e5 {[%clk 0:02:54.8]} 6. d3 {[%clk 0:03:02.2]} 6... Nc6 {[%clk 0:02:54.8]}
7. O-O {[%clk 0:03:02.1]} 7... Nge7 {[%clk 0:02:53.7]} 8. Bg5 {[%clk 0:03:00.5]}
8... f6 {[%clk 0:02:50.9]} 9. Bd2 {[%clk 0:02:56.3]} 9... O-O {[%clk 0:02:50.2]}
10. Qc1 {[%clk 0:02:53.2]} 10... a6 {[%clk 0:02:40.7]} 11. Bh6 {[%clk
0:02:42.2]} 11... Rb8 {[%clk 0:02:39.4]} 12. Bxg7 {[%clk 0:02:39]} 12... Kxg7
{[%clk 0:02:38.8]} 13. b3 {[%clk 0:02:38]} 13... b5 {[%clk 0:02:30.7]} 14. Qd2
{[%clk 0:02:30.7]} 14... Be6 {[%clk 0:02:18.6]} 15. Rab1 {[%clk 0:02:22.2]}
15... Qd7 {[%clk 0:02:12.4]} 16. Rfd1 {[%clk 0:02:16.9]} 16... h6 {[%clk
0:01:40.8]} 17. e3 {[%clk 0:01:44.2]} 17... b4 {[%clk 0:01:38]} 18. Ne2 {[%clk
0:01:32.8]} 18... Bg4 {[%clk 0:01:30.5]} 19. d4 {[%clk 0:01:21.1]} 19... cxd4
{[%clk 0:01:19.9]} 20. exd4 {[%clk 0:01:22]} 20... e4 {[%clk 0:01:18.7]} 21. Ne1
{[%clk 0:01:18.9]} 21... f5 {[%clk 0:01:13.6]} 22. h3 {[%clk 0:01:14.2]} 22...
Bxe2 {[%clk 0:01:11]} 23. Qxe2 {[%clk 0:01:12.3]} 23... Ng8 {[%clk 0:01:05.5]}
24. Qb2 {[%clk 0:00:39.6]} 24... Kh7 {[%clk 0:01:00.8]} 25. Qd2 {[%clk
0:00:32.4]} 25... Nf6 {[%clk 0:00:58.9]} 26. Nc2 {[%clk 0:00:31.3]} 26... Rfe8
{[%clk 0:00:49.3]} 27. Ne3 {[%clk 0:00:30.3]} 27... a5 {[%clk 0:00:46.6]} 28.
Re1 {[%clk 0:00:27.3]} 28... Qa7 {[%clk 0:00:42.2]} 29. Rbd1 {[%clk 0:00:22.9]}
29... a4 {[%clk 0:00:40.7]} 30. Kh2 {[%clk 0:00:13.3]} 30... Qa5 {[%clk
0:00:22.3]} 31. Ra1 {[%clk 0:00:11.1]} 31... Ra8 {[%clk 0:00:20.8]} 32. Qb2
{[%clk 0:00:09.5]} 32... Kg7 {[%clk 0:00:18.6]} 33. f4 {[%clk 0:00:06.9]} 33...
Ra7 {[%clk 0:00:17.7]} 34. d5 {[%clk 0:00:05.8]} 34... Ne7 {[%clk 0:00:15.2]}
35. g4 {[%clk 0:00:05.5]} 35... Rf8 {[%clk 0:00:13.8]} 36. g5 {[%clk 0:00:05.8]}
36... hxg5 {[%clk 0:00:12.3]} 37. fxg5 {[%clk 0:00:06.7]} 37... axb3 {[%clk
0:00:11.5]} 38. gxf6+ {[%clk 0:00:07.6]} 38... Rxf6 {[%clk 0:00:10.9]} 39. axb3
{[%clk 0:00:07.9]} 39... Qb6 {[%clk 0:00:11.1]} 40. Rxa7 {[%clk 0:00:08]} 40...
Qxa7 {[%clk 0:00:11.3]} 41. Rf1 {[%clk 0:00:05.1]} 41... Kf7 {[%clk 0:00:10.6]}
42. Ng4 {[%clk 0:00:05.2]} 42... Ng8 {[%clk 0:00:07.9]} 43. Nxf6 {[%clk
0:00:04.4]} 43... Nxf6 {[%clk 0:00:08.2]} 44. Qf2 {[%clk 0:00:02.6]} 44... Qa3
{[%clk 0:00:01.8]} 45. Qf4 {[%clk 0:00:02.4]} 45... Qxb3 {[%clk 0:00:01.3]} 46.
Qxd6 {[%clk 0:00:03.1]} 1-0

[Event "*** SCC Grand Prix: Titled Tuesday Blitz"]
[Site "Chess.com"]
[Date "2020.07.21"]
[Round "9"]
[White "Jospem"]
[Black "IMHansNiemann"]
[Result "1-0"]
[WhiteElo "2867"]
[BlackElo "2955"]
[TimeControl "180+1"]
[EndTime "11:49:13 PDT"]
[Termination "Jospem won by resignation"]

1. e4 {[%clk 0:02:58.6]} 1... e6 {[%clk 0:02:52.6]} 2. d4 {[%clk 0:02:58.3]}
2... d5 {[%clk 0:02:52]} 3. Nc3 {[%clk 0:02:58.9]} 3... Nf6 {[%clk 0:02:52]} 4.
e5 {[%clk 0:02:59.1]} 4... Nfd7 {[%clk 0:02:52.3]} 5. f4 {[%clk 0:02:59.5]} 5...
c5 {[%clk 0:02:52.8]} 6. Nf3 {[%clk 0:03:00.2]} 6... Nc6 {[%clk 0:02:53.4]} 7.
Be3 {[%clk 0:03:00.4]} 7... cxd4 {[%clk 0:02:54]} 8. Nxd4 {[%clk 0:03:00.3]}
8... Bc5 {[%clk 0:02:54.6]} 9. Qd2 {[%clk 0:03:00]} 9... O-O {[%clk 0:02:55.2]}
10. O-O-O {[%clk 0:02:51.9]} 10... Bxd4 {[%clk 0:02:54.4]} 11. Bxd4 {[%clk
0:02:52.8]} 11... a6 {[%clk 0:02:55.1]} 12. Qe3 {[%clk 0:02:42.8]} 12... b5
{[%clk 0:02:54.7]} 13. Bd3 {[%clk 0:02:42.5]} 13... b4 {[%clk 0:02:54.5]} 14.
Na4 {[%clk 0:02:26.2]} 14... Nxd4 {[%clk 0:02:42.6]} 15. Qxd4 {[%clk 0:02:26]}
15... a5 {[%clk 0:02:43]} 16. Kb1 {[%clk 0:02:04.6]} 16... Bb7 {[%clk
0:02:42.1]} 17. Bb5 {[%clk 0:02:01.3]} 17... Rb8 {[%clk 0:02:26.9]} 18. g4
{[%clk 0:01:56.2]} 18... Ba8 {[%clk 0:02:21.3]} 19. Bxd7 {[%clk 0:01:49.7]}
19... Qxd7 {[%clk 0:02:21.2]} 20. Nc5 {[%clk 0:01:48.1]} 20... Qb5 {[%clk
0:02:19]} 21. b3 {[%clk 0:01:29.6]} 21... Rbc8 {[%clk 0:02:15.8]} 22. Na4 {[%clk
0:01:29.6]} 22... Rc6 {[%clk 0:02:12.5]} 23. f5 {[%clk 0:01:26]} 23... Rfc8
{[%clk 0:02:02.5]} 24. Rd2 {[%clk 0:01:24.9]} 24... h6 {[%clk 0:01:40.7]} 25. h4
{[%clk 0:01:23.2]} 25... Rc4 {[%clk 0:01:26.1]} 26. Qb6 {[%clk 0:01:03.3]} 26...
Qe8 {[%clk 0:01:19.8]} 27. bxc4 {[%clk 0:00:50.2]} 27... dxc4 {[%clk 0:01:10]}
28. Rhd1 {[%clk 0:00:44.4]} 28... Bd5 {[%clk 0:01:09.6]} 29. fxe6 {[%clk
0:00:37.8]} 29... fxe6 {[%clk 0:01:08.3]} 30. Rxd5 {[%clk 0:00:28]} 30... exd5
{[%clk 0:01:01.9]} 31. Rxd5 {[%clk 0:00:28.7]} 31... Rb8 {[%clk 0:00:39.3]} 32.
Qd6 {[%clk 0:00:28.6]} 32... b3 {[%clk 0:00:35.1]} 33. Nb6 {[%clk 0:00:23.3]}
33... Kh7 {[%clk 0:00:21.1]} 34. cxb3 {[%clk 0:00:22.3]} 34... cxb3 {[%clk
0:00:21]} 35. axb3 {[%clk 0:00:22.9]} 35... a4 {[%clk 0:00:21.6]} 36. h5 {[%clk
0:00:19.8]} 36... axb3 {[%clk 0:00:17]} 37. Kb2 {[%clk 0:00:17]} 37... Rb7
{[%clk 0:00:12.2]} 38. Qg6+ {[%clk 0:00:14.1]} 38... Qxg6 {[%clk 0:00:12.2]} 39.
hxg6+ {[%clk 0:00:15]} 39... Kxg6 {[%clk 0:00:13.1]} 40. Nd7 {[%clk 0:00:13.7]}
40... Kf7 {[%clk 0:00:10.9]} 41. Nc5 {[%clk 0:00:13.2]} 41... Rc7 {[%clk
0:00:10.4]} 42. Kxb3 {[%clk 0:00:12.9]} 42... Kg6 {[%clk 0:00:10.8]} 43. Kc4
{[%clk 0:00:12.9]} 43... Rc8 {[%clk 0:00:10.8]} 44. e6 {[%clk 0:00:11.9]} 44...
Kf6 {[%clk 0:00:10.4]} 45. Rd7 {[%clk 0:00:12]} 45... g6 {[%clk 0:00:10.3]} 46.
Kd5 {[%clk 0:00:11.3]} 46... Kg5 {[%clk 0:00:10.8]} 47. e7 {[%clk 0:00:11.3]}
47... Re8 {[%clk 0:00:10.6]} 48. Ne4+ {[%clk 0:00:11.7]} 48... Kf4 {[%clk
0:00:07.1]} 49. Nf6 {[%clk 0:00:12]} 49... Ra8 {[%clk 0:00:07.7]} 50. Rd8 {[%clk
0:00:11.9]} 50... Ra5+ {[%clk 0:00:07.5]} 51. Ke6 {[%clk 0:00:12.4]} 51... Ra6+
{[%clk 0:00:07.6]} 52. Rd6 {[%clk 0:00:12]} 52... Ra8 {[%clk 0:00:07.4]} 53. Kf7
{[%clk 0:00:12]} 53... h5 {[%clk 0:00:07.1]} 54. gxh5 {[%clk 0:00:12.3]} 54...
gxh5 {[%clk 0:00:08]} 55. Nxh5+ {[%clk 0:00:12.8]} 55... Ke5 {[%clk 0:00:08.1]}
56. Rd8 {[%clk 0:00:12.9]} 1-0

[Event "*** SCC Grand Prix: Titled Tuesday Blitz"]
[Site "Chess.com"]
[Date "2020.07.21"]
[Round "9"]
[White "MusicCityMaster"]
[Black "ftorodent"]
[Result "0-1"]
[WhiteElo "2458"]
[BlackElo "2647"]
[TimeControl "180+1"]
[EndTime "11:49:16 PDT"]
[Termination "ftorodent won by resignation"]

1. e4 {[%clk 0:03:00.9]} 1... c5 {[%clk 0:02:59]} 2. Nf3 {[%clk 0:03:01.2]} 2...
e6 {[%clk 0:02:58.5]} 3. d4 {[%clk 0:03:01.8]} 3... cxd4 {[%clk 0:02:58.7]} 4.
Nxd4 {[%clk 0:03:02.4]} 4... a6 {[%clk 0:02:59]} 5. Bd3 {[%clk 0:02:59.6]} 5...
Bc5 {[%clk 0:02:58.1]} 6. Nb3 {[%clk 0:02:59.3]} 6... Be7 {[%clk 0:02:58.2]} 7.
O-O {[%clk 0:02:59.1]} 7... d6 {[%clk 0:02:56.9]} 8. Nc3 {[%clk 0:02:58.5]} 8...
Nf6 {[%clk 0:02:56.8]} 9. Kh1 {[%clk 0:02:57.1]} 9... Nc6 {[%clk 0:02:55.9]} 10.
f4 {[%clk 0:02:57.2]} 10... O-O {[%clk 0:02:55.5]} 11. Qe1 {[%clk 0:02:53]}
11... Qc7 {[%clk 0:02:52.3]} 12. Bd2 {[%clk 0:02:50]} 12... b5 {[%clk 0:02:51]}
13. Qg3 {[%clk 0:02:45.3]} 13... Bb7 {[%clk 0:02:49]} 14. Rae1 {[%clk
0:02:44.6]} 14... g6 {[%clk 0:02:44.8]} 15. f5 {[%clk 0:02:32.6]} 15... Ne5
{[%clk 0:02:31.6]} 16. Bh6 {[%clk 0:02:21.8]} 16... Rfe8 {[%clk 0:02:23.7]} 17.
fxe6 {[%clk 0:02:20.9]} 17... fxe6 {[%clk 0:02:22.7]} 18. Nd4 {[%clk 0:02:20.5]}
18... Bc8 {[%clk 0:02:10.8]} 19. Bg5 {[%clk 0:02:11.7]} 19... Nh5 {[%clk
0:02:05.6]} 20. Qh4 {[%clk 0:02:11.6]} 20... Bxg5 {[%clk 0:02:02.1]} 21. Qxg5
{[%clk 0:02:11.5]} 21... Qe7 {[%clk 0:02:01.9]} 22. Qd2 {[%clk 0:01:40.2]} 22...
Qh4 {[%clk 0:01:53.2]} 23. Re3 {[%clk 0:01:26.7]} 23... Qg5 {[%clk 0:01:35]} 24.
Qe1 {[%clk 0:01:22.3]} 24... Bd7 {[%clk 0:01:31.1]} 25. Nf3 {[%clk 0:01:18.8]}
25... Qf6 {[%clk 0:01:27]} 26. Nd2 {[%clk 0:00:58]} 26... Qe7 {[%clk 0:01:24.6]}
27. Rh3 {[%clk 0:00:52.9]} 27... Rf8 {[%clk 0:01:21.4]} 28. Nf3 {[%clk
0:00:50.6]} 28... Nf4 {[%clk 0:01:19.5]} 29. Rg3 {[%clk 0:00:50.1]} 29... Nfxd3
{[%clk 0:01:15.8]} 30. cxd3 {[%clk 0:00:50.4]} 30... Nxd3 {[%clk 0:01:15.7]} 31.
Qd1 {[%clk 0:00:42.1]} 31... Ne5 {[%clk 0:01:13.9]} 32. Nxe5 {[%clk 0:00:41.7]}
32... dxe5 {[%clk 0:01:12.9]} 33. Rgf3 {[%clk 0:00:36.2]} 33... Rxf3 {[%clk
0:01:10.1]} 34. Rxf3 {[%clk 0:00:36.4]} 34... Bc6 {[%clk 0:01:10.2]} 35. Qd2
{[%clk 0:00:31.4]} 35... b4 {[%clk 0:01:04.4]} 36. Ne2 {[%clk 0:00:22.9]} 36...
Bxe4 {[%clk 0:01:04]} 37. Re3 {[%clk 0:00:21.7]} 37... Rd8 {[%clk 0:01:03.5]}
38. Qe1 {[%clk 0:00:20.6]} 38... Bc2 {[%clk 0:00:54.2]} 39. Qf2 {[%clk
0:00:16.9]} 39... Qc5 {[%clk 0:00:48.7]} 40. Ng1 {[%clk 0:00:15.3]} 40... Rd3
{[%clk 0:00:44.5]} 41. Re2 {[%clk 0:00:14.8]} 41... Qxf2 {[%clk 0:00:43.5]} 42.
Rxf2 {[%clk 0:00:15.7]} 42... Bb1 {[%clk 0:00:43.3]} 43. b3 {[%clk 0:00:14.9]}
43... Rd1 {[%clk 0:00:43.2]} 44. h3 {[%clk 0:00:15.1]} 44... e4 {[%clk
0:00:42.9]} 45. Kh2 {[%clk 0:00:15.3]} 45... Bd3 {[%clk 0:00:42.8]} 46. Kg3
{[%clk 0:00:14.1]} 46... e5 {[%clk 0:00:41.1]} 47. Ne2 {[%clk 0:00:13.3]} 47...
e3 {[%clk 0:00:40.2]} 48. Rf3 {[%clk 0:00:12.1]} 48... Bxe2 {[%clk 0:00:40]} 49.
Rxe3 {[%clk 0:00:13]} 49... Rd2 {[%clk 0:00:40]} 50. Rxe5 {[%clk 0:00:12.8]}
50... Rxa2 {[%clk 0:00:40.1]} 51. Re7 {[%clk 0:00:12.2]} 51... Bb5 {[%clk
0:00:39.2]} 52. Kf3 {[%clk 0:00:11.9]} 52... Rb2 {[%clk 0:00:38.7]} 53. g4
{[%clk 0:00:11.9]} 53... Rxb3+ {[%clk 0:00:38.4]} 54. Kf4 {[%clk 0:00:12.8]}
54... Rc3 {[%clk 0:00:38.1]} 55. h4 {[%clk 0:00:09.8]} 55... b3 {[%clk
0:00:37.9]} 56. Kg5 {[%clk 0:00:10]} 56... b2 {[%clk 0:00:35]} 57. Kh6 {[%clk
0:00:10.3]} 57... b1=Q {[%clk 0:00:33.9]} 58. Rg7+ {[%clk 0:00:07.4]} 58... Kf8
{[%clk 0:00:33.9]} 59. Rxh7 {[%clk 0:00:07.6]} 59... Qe4 {[%clk 0:00:31.5]} 60.
Rh8+ {[%clk 0:00:05.2]} 60... Kf7 {[%clk 0:00:30.8]} 61. Rh7+ {[%clk 0:00:05.4]}
61... Ke6 {[%clk 0:00:30.6]} 62. g5 {[%clk 0:00:03.4]} 62... Qxh4+ {[%clk
0:00:29.7]} 0-1

[Event "*** SCC Grand Prix: Titled Tuesday Blitz"]
[Site "Chess.com"]
[Date "2020.07.21"]
[Round "9"]
[White "Chessbard1972"]
[Black "crazychessbr"]
[Result "1-0"]
[WhiteElo "2311"]
[BlackElo "2127"]
[TimeControl "180+1"]
[EndTime "11:49:16 PDT"]
[Termination "Chessbard1972 won by resignation"]

1. d4 {[%clk 0:03:00.9]} 1... Nf6 {[%clk 0:02:58.7]} 2. c4 {[%clk 0:02:58.5]}
2... g6 {[%clk 0:02:58.7]} 3. Nf3 {[%clk 0:02:57.8]} 3... Bg7 {[%clk 0:02:58.6]}
4. g3 {[%clk 0:02:58]} 4... d6 {[%clk 0:02:59]} 5. Bg2 {[%clk 0:02:58]} 5... O-O
{[%clk 0:02:59.9]} 6. Nc3 {[%clk 0:02:57.5]} 6... Nc6 {[%clk 0:03:00.4]} 7. O-O
{[%clk 0:02:56.9]} 7... e5 {[%clk 0:03:01]} 8. dxe5 {[%clk 0:02:55.7]} 8... dxe5
{[%clk 0:03:01.9]} 9. Qxd8 {[%clk 0:02:55.2]} 9... Rxd8 {[%clk 0:03:01.9]} 10.
Bg5 {[%clk 0:02:55.8]} 10... Be6 {[%clk 0:03:01.9]} 11. Nd2 {[%clk 0:02:52.3]}
11... h6 {[%clk 0:03:00.5]} 12. Bxf6 {[%clk 0:02:51.3]} 12... Bxf6 {[%clk
0:03:00.1]} 13. Nd5 {[%clk 0:02:50]} 13... Bxd5 {[%clk 0:02:59.9]} 14. cxd5
{[%clk 0:02:49.6]} 14... Nb4 {[%clk 0:03:00]} 15. e4 {[%clk 0:02:40.7]} 15...
Bg5 {[%clk 0:02:50]} 16. Nc4 {[%clk 0:02:30.3]} 16... Bf6 {[%clk 0:02:47.6]} 17.
Rfc1 {[%clk 0:02:12.7]} 17... Nd3 {[%clk 0:02:33.6]} 18. Rc3 {[%clk 0:02:09.3]}
18... Nb4 {[%clk 0:02:24.8]} 19. Na5 {[%clk 0:02:02.8]} 19... b6 {[%clk
0:02:19.5]} 20. Nc6 {[%clk 0:02:02]} 20... Nxc6 {[%clk 0:01:51.2]} 21. Rxc6
{[%clk 0:02:01.1]} 21... Be7 {[%clk 0:01:45.4]} 22. Rxc7 {[%clk 0:02:00.9]}
22... Bc5 {[%clk 0:01:41.6]} 23. Bh3 {[%clk 0:01:54.6]} 23... Kf8 {[%clk
0:01:31.4]} 24. a3 {[%clk 0:01:48.5]} 24... a5 {[%clk 0:01:28.7]} 25. Rc1 {[%clk
0:01:43.8]} 25... Re8 {[%clk 0:01:05.3]} 26. Kf1 {[%clk 0:01:25.6]} 26... Re7
{[%clk 0:01:04.3]} 27. Rc6 {[%clk 0:01:23.9]} 27... Rd8 {[%clk 0:00:58.9]} 28.
b4 {[%clk 0:01:19.6]} 28... axb4 {[%clk 0:00:58.5]} 29. axb4 {[%clk 0:01:19.5]}
29... Bxb4 {[%clk 0:00:59.4]} 30. Rxb6 {[%clk 0:01:19.3]} 30... Ba3 {[%clk
0:00:38.2]} 31. Rcc6 {[%clk 0:01:16.3]} 31... Ra7 {[%clk 0:00:32.5]} 32. f4
{[%clk 0:01:12.6]} 32... exf4 {[%clk 0:00:24.9]} 33. gxf4 {[%clk 0:01:11.9]}
33... Be7 {[%clk 0:00:24.6]} 34. Bg2 {[%clk 0:01:05.2]} 34... Ra1+ {[%clk
0:00:21.7]} 35. Ke2 {[%clk 0:01:01.4]} 35... Rda8 {[%clk 0:00:18.6]} 36. Rb2
{[%clk 0:00:54]} 36... Ba3 {[%clk 0:00:13.3]} 37. Rbc2 {[%clk 0:00:52.9]} 37...
Kg7 {[%clk 0:00:10.7]} 38. e5 {[%clk 0:00:51.8]} 38... Bb4 {[%clk 0:00:07]} 39.
d6 {[%clk 0:00:48.1]} 39... Re1+ {[%clk 0:00:04.5]} 40. Kf2 {[%clk 0:00:48]}
40... Raa1 {[%clk 0:00:02.7]} 41. Rc7 {[%clk 0:00:46.8]} 41... Ba5 {[%clk
0:00:01.4]} 42. Rb7 {[%clk 0:00:42.9]} 42... Rad1 {[%clk 0:00:01.4]} 43. Re2
{[%clk 0:00:30.5]} 43... Ra1 {[%clk 0:00:02.3]} 44. Rxe1 {[%clk 0:00:28.6]}
44... Bxe1+ {[%clk 0:00:03.2]} 45. Ke2 {[%clk 0:00:26.9]} 45... Bh4 {[%clk
0:00:04.1]} 46. Bd5 {[%clk 0:00:25.7]} 46... Re1+ {[%clk 0:00:05]} 47. Kd2
{[%clk 0:00:24.5]} 47... Rg1 {[%clk 0:00:02.5]} 48. Rxf7+ {[%clk 0:00:23.1]}
48... Kh8 {[%clk 0:00:02.7]} 49. e6 {[%clk 0:00:19]} 49... Be1+ {[%clk
0:00:03.6]} 50. Ke2 {[%clk 0:00:17.9]} 50... Bb4 {[%clk 0:00:02.9]} 51. e7
{[%clk 0:00:16]} 51... Re1+ {[%clk 0:00:02.8]} 52. Kf2 {[%clk 0:00:14.4]} 52...
Rxe7 {[%clk 0:00:01.3]} 53. dxe7 {[%clk 0:00:13.1]} 53... Bxe7 {[%clk
0:00:02.2]} 54. Rxe7 {[%clk 0:00:12.6]} 1-0